[Event "44th Chess Olympiad Women 2022"]
[Site "Chennai"]
[Date "2022.08.01"]
[Round "4.32"]
[White "Fawaz, Nadia"]
[Black "Dejanovic, Tereza"]
[Result "1-0"]
[WhiteElo "1214"]
[BlackElo "2011"]
[Annotator "NA RC"]
[PlyCount "65"]
[EventDate "2022.??.??"]
[TimeControl "60"]

1. d4 {[%emt 0:00:13]} d5 {[%emt 0:00:04]} 2. Nf3 {[%emt 0:00:25]} Nf6 {
[%emt 0:00:04]} 3. Bf4 {[%emt 0:00:38]} e6 {[%emt 0:00:06]} 4. e3 {[%emt 0:00:
00]} Bd6 {[%emt 0:00:35]} 5. Bg3 {[%emt 0:00:32]} c5 {[%emt 0:00:30]} 6. c3 {
[%emt 0:03:01]} Nc6 {[%emt 0:00:41]} 7. Bd3 {[%emt 0:01:57]} O-O {[%emt 0:00:
00]} 8. O-O {[%emt 0:00:46]} b6 {[%emt 0:02:03]} 9. Nbd2 {[%emt 0:02:45]} Bb7 {
[%emt 0:01:07]} 10. Bh4 {[%emt 0:02:58]} Be7 {[%emt 0:01:41]} 11. Qc2 {[%emt 0:
00:00]} h6 {[%emt 0:02:05]} 12. dxc5 {[%emt 0:06:01]} bxc5 {[%emt 0:02:28]} 13.
Rad1 {[%emt 0:02:10]} Qb6 {[%emt 0:08:16]} 14. Qb1 {[%emt 0:13:18]} e5 {
[%emt 0:07:07]} 15. e4 {[%emt 0:03:52]} d4 {[%emt 0:10:12]} 16. Nc4 {[%emt 0:
00:00]} Qc7 {[%emt 0:00:06]} 17. Bg3 {[%emt 0:00:40]} Nd7 {[%emt 0:04:04]} 18.
cxd4 {[%emt 0:07:17]} cxd4 {[%emt 0:00:14]} 19. Be2 {[%emt 0:02:33]} Bc5 {
[%emt 0:16:55]} 20. b4 {[%emt 0:01:39]} Bxb4 {[%emt 0:03:21]} 21. Nxd4 {
[%emt 0:00:36]} Nxd4 {[%emt 0:05:00]} 22. Rxd4 {[%emt 0:00:13]} Bc5 {[%emt 0:
00:00]} 23. Rd2 {[%emt 0:00:58]} f6 {[%emt 0:04:08]} 24. Rc1 {[%emt 0:02:23]}
Bc6 {[%emt 0:02:26]} 25. Qd3 {[%emt 0:06:07]} Rfd8 {[%emt 0:03:29]} 26. Qf3 {
[%emt 0:04:41]} Rac8 {[%emt 0:02:52]} 27. Qh5 {[%emt 0:03:21]} Qb8 {[%emt 0:00:
00]} 28. Bg4 {[%emt 0:03:33]} Rc7 {[%emt 0:01:04]} 29. Bf5 {[%emt 0:08:10]} Kh8
{[%emt 0:09:29]} 30. h3 {[%emt 0:03:20]} a6 {[%emt 0:00:30]} 31. Bh4 {[%emt 0:
00:00]} Bd4 {[%emt 0:00:31]} 32. Nd6 {[%emt 0:00:23]} Rf8 {[%emt 0:00:31]} 33.
Qg6 {[%emt 0:00:25]} 1-0

[Event "44th Chess Olympiad Women 2022"]
[Site "Chennai"]
[Date "2022.08.01"]
[Round "4.32"]
[White "Grishina, Alexandra"]
[Black "Berke, Ana"]
[Result "0-1"]
[WhiteElo "2012"]
[BlackElo "2163"]
[Annotator "NA RC"]
[PlyCount "82"]
[EventDate "2022.??.??"]
[TimeControl "60"]

1. d4 {[%emt 1:42:26]} Nf6 {[%emt 0:00:09]} 2. Nf3 {[%emt 0:00:58]} e6 {
[%emt 0:00:48]} 3. g3 {[%emt 0:01:04]} c5 {[%emt 0:00:06]} 4. Bg2 {[%emt 0:00:
00]} cxd4 {[%emt 0:02:36]} 5. Nxd4 {[%emt 0:02:28]} d5 {[%emt 0:00:09]} 6. O-O
{[%emt 0:02:51]} e5 {[%emt 0:00:39]} 7. Nb3 {[%emt 0:05:34]} Nc6 {[%emt 0:00:
00]} 8. Bg5 {[%emt 0:01:09]} Be6 {[%emt 0:00:48]} 9. Nc3 {[%emt 0:03:43]} d4 {
[%emt 0:07:03]} 10. Ne4 {[%emt 0:06:13]} Be7 {[%emt 0:02:15]} 11. Nbc5 {
[%emt 0:12:42]} Bc8 {[%emt 0:12:40]} 12. Bxf6 {[%emt 0:17:13]} gxf6 {[%emt 0:
00:00]} 13. Nb3 {[%emt 0:02:28]} a5 {[%emt 0:03:19]} 14. a4 {[%emt 0:03:21]} f5
{[%emt 0:02:19]} 15. Ned2 {[%emt 0:01:13]} Be6 {[%emt 0:03:07]} 16. e3 {
[%emt 0:03:52]} dxe3 {[%emt 0:02:41]} 17. fxe3 {[%emt 0:00:08]} h5 {[%emt 0:00:
00]} 18. Qe2 {[%emt 0:07:49]} h4 {[%emt 0:04:36]} 19. Qb5 {[%emt 0:02:39]} Qc7
{[%emt 0:03:06]} 20. e4 {[%emt 0:13:32]} f4 {[%emt 0:01:26]} 21. gxf4 {[%emt 0:
00:00]} exf4 {[%emt 0:08:46]} 22. e5 {[%emt 0:03:48]} h3 {[%emt 0:03:43]} 23.
Bf3 {[%emt 0:00:57]} O-O-O {[%emt 0:06:17]} 24. Rae1 {[%emt 0:01:25]} Kb8 {
[%emt 0:05:31]} 25. Kh1 {[%emt 0:01:38]} Rhg8 {[%emt 0:01:52]} 26. Ne4 {
[%emt 0:01:13]} Bxb3 {[%emt 0:02:00]} 27. cxb3 {[%emt 0:01:02]} Qxe5 {[%emt 0:
00:00]} 28. Nc3 {[%emt 0:00:45]} Qxb5 {[%emt 0:08:22]} 29. axb5 {[%emt 0:00:14]
} Bh4 {[%emt 0:02:10]} 30. bxc6 {[%emt 0:00:27]} Bxe1 {[%emt 0:00:14]} 31. Rxe1
{[%emt 0:00:19]} bxc6 {[%emt 0:00:22]} 32. Bxc6 {[%emt 0:00:15]} Rd2 {[%emt 0:
00:00]} 33. Na4 {[%emt 0:01:32]} Rc8 {[%emt 0:00:25]} 34. Be4 {[%emt 0:00:07]}
Re8 {[%emt 0:00:32]} 35. Nc3 {[%emt 0:00:52]} f3 {[%emt 0:01:04]} 36. Rf1 {
[%emt 0:00:27]} f2 {[%emt 0:00:28]} 37. Bd5 {[%emt 0:00:37]} Re1 {[%emt 0:00:
00]} 38. Bc4 {[%emt 0:00:03]} Rxb2 {[%emt 0:00:25]} 39. Nd1 {[%emt 0:00:56]}
Rb1 {[%emt 0:00:57]} 40. Ne3 {[%emt 0:00:05]} Rxe3 {[%emt 0:00:23]} 41. b4 {
[%emt 0:05:18]} Rxf1+ {[%emt 0:02:39]} 0-1

[Event "44th Chess Olympiad Women 2022"]
[Site "Chennai"]
[Date "2022.08.01"]
[Round "4.32"]
[White "Ivekovic, Tihana"]
[Black "Bedrosian, Danielle"]
[Result "1-0"]
[WhiteElo "2082"]
[BlackElo "1662"]
[Annotator "NA RC"]
[PlyCount "85"]
[EventDate "2022.??.??"]
[TimeControl "60"]

1. d4 {[%emt 0:00:02]} Nf6 {[%emt 0:00:06]} 2. c4 {[%emt 0:00:05]} e6 {[%emt 0:
00:00]} 3. g3 {[%emt 0:00:04]} d5 {[%emt 0:10:37]} 4. Bg2 {[%emt 0:00:06]} c6 {
[%emt 0:18:42]} 5. Nf3 {[%emt 0:00:13]} Be7 {[%emt 0:02:22]} 6. O-O {[%emt 0:
00:00]} O-O {[%emt 0:04:24]} 7. Nbd2 {[%emt 0:00:15]} Nbd7 {[%emt 0:18:06]} 8.
Qc2 {[%emt 0:00:57]} Re8 {[%emt 0:21:42]} 9. Rd1 {[%emt 0:02:30]} Nf8 {[%emt 0:
00:00]} 10. e4 {[%emt 0:00:18]} dxe4 {[%emt 0:00:32]} 11. Nxe4 {[%emt 0:00:06]}
Ng6 {[%emt 0:01:39]} 12. Ne5 {[%emt 0:02:17]} Qc7 {[%emt 0:00:44]} 13. Nxg6 {
[%emt 0:02:52]} hxg6 {[%emt 0:01:39]} 14. Bf4 {[%emt 0:00:12]} Qd8 {[%emt 0:00:
00]} 15. h4 {[%emt 0:13:13]} Nh5 {[%emt 0:01:29]} 16. Be3 {[%emt 0:02:39]} Qc7
{[%emt 0:00:03]} 17. Rac1 {[%emt 0:00:14]} b6 {[%emt 0:04:46]} 18. Qb1 {
[%emt 0:05:53]} Qb8 {[%emt 0:02:25]} 19. Bg5 {[%emt 0:07:54]} f6 {[%emt 0:00:
00]} 20. Be3 {[%emt 0:04:25]} Bb7 {[%emt 0:00:20]} 21. Nc3 {[%emt 0:03:04]} f5
{[%emt 0:00:38]} 22. d5 {[%emt 0:08:07]} cxd5 {[%emt 0:01:46]} 23. cxd5 {
[%emt 0:00:04]} Bf8 {[%emt 0:00:48]} 24. Nb5 {[%emt 0:06:54]} Bc5 {[%emt 0:00:
00]} 25. Bxc5 {[%emt 0:00:35]} bxc5 {[%emt 0:00:02]} 26. Rxc5 {[%emt 0:01:05]}
Bxd5 {[%emt 0:00:29]} 27. Bxd5 {[%emt 0:01:25]} exd5 {[%emt 0:00:03]} 28. Qd3 {
[%emt 0:00:30]} Nf6 {[%emt 0:00:21]} 29. Nc7 {[%emt 0:04:12]} Qxb2 {[%emt 0:00:
00]} 30. Nxa8 {[%emt 0:00:44]} Rxa8 {[%emt 0:00:02]} 31. Rc2 {[%emt 0:03:13]}
Qb7 {[%emt 0:00:45]} 32. h5 {[%emt 0:02:16]} Nxh5 {[%emt 0:01:45]} 33. Qxd5+ {
[%emt 0:02:37]} Qxd5 {[%emt 0:00:02]} 34. Rxd5 {[%emt 0:00:08]} Nf6 {[%emt 0:
00:00]} 35. Ra5 {[%emt 0:00:05]} Ne4 {[%emt 0:00:44]} 36. Rc7 {[%emt 0:01:09]}
a6 {[%emt 0:00:22]} 37. Re5 {[%emt 0:04:10]} Rd8 {[%emt 0:00:41]} 38. Ree7 {
[%emt 0:00:08]} Rd1+ {[%emt 0:00:10]} 39. Kg2 {[%emt 0:00:31]} Rd2 {[%emt 0:00:
00]} 40. Rxg7+ {[%emt 0:00:07]} Kf8 {[%emt 0:00:03]} 41. Rh7 {[%emt 0:30:29]}
Rxf2+ {[%emt 0:30:08]} 42. Kg1 {[%emt 0:00:04]} Kg8 {[%emt 0:02:17]} 43. Rhd7 {
[%emt 0:00:17]} 1-0

[Event "44th Chess Olympiad Women 2022"]
[Site "Chennai"]
[Date "2022.08.01"]
[Round "4.32"]
[White "Medic, Mirjana"]
[Black "Mouradian, Knarik"]
[Result "1-0"]
[WhiteElo "2194"]
[BlackElo "2121"]
[Annotator "RC"]
[PlyCount "131"]
[EventDate "2022.??.??"]
[TimeControl "60"]

1. d4 {[%emt 0:00:02]} d5 {[%emt 0:00:19]} 2. c4 {[%emt 0:00:13]} c6 {[%emt 0:
00:00]} 3. Nf3 {[%emt 0:00:15]} Nf6 {[%emt 0:00:12]} 4. Nc3 {[%emt 0:00:17]} e6
{[%emt 0:00:16]} 5. e3 {[%emt 0:00:36]} Nbd7 {[%emt 0:00:17]} 6. Qc2 {[%emt 0:
00:00]} b6 {[%emt 0:00:43]} 7. b3 {[%emt 0:01:33]} Bb7 {[%emt 0:00:42]} 8. Bb2
{[%emt 0:00:09]} Rc8 {[%emt 0:01:14]} 9. Be2 {[%emt 0:00:42]} Bd6 {[%emt 0:00:
00]} 10. O-O {[%emt 0:00:25]} O-O {[%emt 0:00:26]} 11. Rad1 {[%emt 0:06:08]}
Qe7 {[%emt 0:02:10]} 12. Rfe1 {[%emt 0:00:57]} Rfd8 {[%emt 0:01:39]} 13. Bf1 {
[%emt 0:02:06]} e5 {[%emt 0:03:28]} 14. e4 {[%emt 0:11:42]} dxc4 {[%emt 0:00:
00]} 15. Bxc4 {[%emt 0:00:38]} b5 {[%emt 0:05:10]} 16. Bf1 {[%emt 0:03:06]} a6
{[%emt 0:12:34]} 17. g3 {[%emt 0:14:52]} b4 {[%emt 0:25:45]} 18. Na4 {[%emt 0:
00:00]} Ng4 {[%emt 0:09:03]} 19. h3 {[%emt 0:00:55]} Ngf6 {[%emt 0:00:31]} 20.
dxe5 {[%emt 0:07:33]} Bxe5 {[%emt 0:01:02]} 21. Nxe5 {[%emt 0:02:08]} Nxe5 {
[%emt 0:00:10]} 22. Bxe5 {[%emt 0:01:42]} Qxe5 {[%emt 0:00:08]} 23. Nc5 {
[%emt 0:00:14]} Qe7 {[%emt 0:04:27]} 24. Rxd8+ {[%emt 0:05:34]} Rxd8 {[%emt 0:
00:00]} 25. Bxa6 {[%emt 0:04:48]} Bxa6 {[%emt 0:00:06]} 26. Nxa6 {[%emt 0:00:
00]} c5 {[%emt 0:01:49]} 27. Qxc5 {[%emt 0:01:18]} Qe6 {[%emt 0:00:59]} 28.
Nxb4 {[%emt 0:03:24]} Qxh3 {[%emt 0:00:44]} 29. Qg5 {[%emt 0:08:00]} h6 {
[%emt 0:04:01]} 30. Qh4 {[%emt 0:00:07]} Qd7 {[%emt 0:00:24]} 31. Qf4 {[%emt 0:
00:00]} Qc8 {[%emt 0:03:21]} 32. Rc1 {[%emt 0:01:31]} Qe6 {[%emt 0:01:28]} 33.
Nc6 {[%emt 0:01:09]} Ra8 {[%emt 0:00:39]} 34. e5 {[%emt 0:01:00]} Nh7 {[%emt 0:
00:00]} 35. Nd4 {[%emt 0:03:13]} Qd7 {[%emt 0:00:45]} 36. e6 {[%emt 0:03:05]}
fxe6 {[%emt 0:02:00]} 37. Rc7 {[%emt 0:00:05]} Qe8 {[%emt 0:00:27]} 38. Qe5 {
[%emt 0:00:18]} Nf6 {[%emt 0:01:41]} 39. Qxe6+ {[%emt 0:01:47]} Qxe6 {[%emt 0:
00:00]} 40. Nxe6 {[%emt 0:00:02]} Ra6 {[%emt 0:02:12]} 41. Rxg7+ {[%emt 0:00:
00]} Kh8 {[%emt 0:30:06]} 42. Re7 {[%emt 0:00:12]} Rxa2 {[%emt 0:00:34]} 43.
Nd4 {[%emt 0:00:21]} Rd2 {[%emt 0:00:46]} 44. Nf5 {[%emt 0:02:32]} h5 {[%emt 0:
00:00]} 45. Ne3 {[%emt 0:00:00]} Rb2 {[%emt 0:00:00]} 46. Rf7 {[%emt 0:00:00]}
Ne4 {[%emt 0:00:00]} 47. Rf4 {[%emt 0:00:00]} Nc5 {[%emt 0:00:00]} 48. Rf5 {
[%emt 0:00:00]} Ne4 {[%emt 0:00:00]} 49. Rxh5+ {[%emt 0:00:00]} Kg7 {[%emt 0:
00:00]} 50. Rf5 {[%emt 0:00:00]} Rxb3 {[%emt 0:00:00]} 51. Re5 {[%emt 0:00:00]}
Nf6 {[%emt 0:00:00]} 52. Kg2 {[%emt 0:00:00]} Kg6 {[%emt 0:00:00]} 53. f4 {
[%emt 0:00:00]} Ra3 {[%emt 0:00:00]} 54. g4 {[%emt 0:00:00]} Nd7 {[%emt 0:00:
00]} 55. Rg5+ {[%emt 0:00:00]} Kf6 {[%emt 0:00:00]} 56. Kf3 {[%emt 0:00:00]}
Rb3 {[%emt 0:00:00]} 57. Rd5 {[%emt 0:00:00]} Nf8 {[%emt 0:00:00]} 58. Rd6+ {
[%emt 0:00:00]} Ke7 {[%emt 0:00:00]} 59. Rc6 {[%emt 0:00:00]} Ne6 {[%emt 0:00:
00]} 60. Ke4 {[%emt 0:00:00]} Rb4+ {[%emt 0:00:00]} 61. Rc4 {[%emt 0:00:00]}
Rb5 {[%emt 0:00:00]} 62. f5 {[%emt 0:01:12]} Ng5+ {[%emt 0:00:06]} 63. Kf4 {
[%emt 0:00:15]} Nf7 {[%emt 0:02:13]} 64. g5 {[%emt 0:00:19]} Kf8 {[%emt 0:00:
00]} 65. Rd4 {[%emt 0:00:32]} Rb2 {[%emt 0:01:12]} 66. g6 {[%emt 0:00:48]} 1-0

[Event "44th Chess Olympiad Women 2022"]
[Site "Chennai"]
[Date "2022.08.01"]
[Round "4.33"]
[White "Nazarova, Anastasia"]
[Black "Zhang, Jasmine Haomo"]
[Result "1-0"]
[WhiteElo "2208"]
[BlackElo "1972"]
[Annotator "NA RC"]
[PlyCount "67"]
[EventDate "2022.??.??"]
[TimeControl "60"]

1. e4 {[%emt 0:00:03]} c5 {[%emt 0:00:10]} 2. Nf3 {[%emt 0:00:05]} d6 {[%emt 0:
00:00]} 3. d4 {[%emt 0:00:03]} cxd4 {[%emt 0:00:07]} 4. Nxd4 {[%emt 0:00:02]}
Nf6 {[%emt 0:00:09]} 5. Nc3 {[%emt 0:00:03]} a6 {[%emt 0:00:06]} 6. Be3 {
[%emt 0:00:03]} e6 {[%emt 0:00:06]} 7. f3 {[%emt 0:00:04]} b5 {[%emt 0:00:27]}
8. Qd2 {[%emt 0:00:05]} Nbd7 {[%emt 0:00:30]} 9. g4 {[%emt 0:00:12]} h6 {
[%emt 0:00:27]} 10. h4 {[%emt 0:02:52]} b4 {[%emt 0:03:13]} 11. Nce2 {[%emt 0:
00:00]} d5 {[%emt 0:00:36]} 12. exd5 {[%emt 0:03:19]} Nxd5 {[%emt 0:00:32]} 13.
Bf2 {[%emt 0:02:12]} Bb7 {[%emt 0:09:25]} 14. O-O-O {[%emt 0:04:07]} Ne5 {
[%emt 0:08:08]} 15. Nf4 {[%emt 0:10:04]} Nxf4 {[%emt 0:16:14]} 16. Qxf4 {
[%emt 0:00:10]} Bd6 {[%emt 0:03:51]} 17. Qe3 {[%emt 0:02:47]} Bd5 {[%emt 0:00:
00]} 18. Nf5 {[%emt 0:13:15]} O-O {[%emt 0:15:04]} 19. Bg3 {[%emt 0:02:46]}
Nxg4 {[%emt 0:10:04]} 20. fxg4 {[%emt 0:03:42]} Bxh1 {[%emt 0:00:13]} 21. Nxd6
{[%emt 0:01:55]} Bd5 {[%emt 0:01:11]} 22. g5 {[%emt 0:04:26]} hxg5 {[%emt 0:00:
00]} 23. hxg5 {[%emt 0:00:04]} Qa5 {[%emt 0:00:29]} 24. g6 {[%emt 0:13:23]}
fxg6 {[%emt 0:01:34]} 25. Bh3 {[%emt 0:05:57]} Qxa2 {[%emt 0:04:04]} 26. Rxd5 {
[%emt 0:09:08]} exd5 {[%emt 0:00:50]} 27. Be6+ {[%emt 0:00:06]} Kh7 {[%emt 0:
00:00]} 28. Be1 {[%emt 0:00:34]} Qa1+ {[%emt 0:03:17]} 29. Kd2 {[%emt 0:00:33]}
g5 {[%emt 0:00:20]} 30. Qh3+ {[%emt 0:10:05]} Kg6 {[%emt 0:00:08]} 31. Bf5+ {
[%emt 0:00:23]} Kf6 {[%emt 0:07:35]} 32. Qh7 {[%emt 0:03:39]} Ke7 {[%emt 0:00:
00]} 33. Qxg7+ {[%emt 0:00:12]} Kxd6 {[%emt 0:00:09]} 34. Bg3+ {[%emt 0:00:39]}
1-0

[Event "44th Chess Olympiad Women 2022"]
[Site "Chennai"]
[Date "2022.08.01"]
[Round "4.33"]
[White "Punsalan, Vyanla M"]
[Black "Tuominen, Tanja"]
[Result "1-0"]
[WhiteElo "1895"]
[BlackElo "2080"]
[Annotator "NA RC"]
[PlyCount "99"]
[EventDate "2022.??.??"]
[TimeControl "60"]

1. e4 {[%emt 0:00:07]} c5 {[%emt 0:00:04]} 2. c3 {[%emt 0:00:13]} d5 {[%emt 0:
00:00]} 3. exd5 {[%emt 0:00:17]} Qxd5 {[%emt 0:00:05]} 4. d4 {[%emt 0:00:32]}
g6 {[%emt 0:00:11]} 5. Nf3 {[%emt 0:01:30]} Bg7 {[%emt 0:00:21]} 6. Be2 {
[%emt 0:01:29]} cxd4 {[%emt 0:02:16]} 7. cxd4 {[%emt 0:01:00]} Nf6 {[%emt 0:00:
00]} 8. Nc3 {[%emt 0:01:49]} Qa5 {[%emt 0:01:27]} 9. Qb3 {[%emt 0:03:53]} O-O {
[%emt 0:06:00]} 10. O-O {[%emt 0:05:42]} a6 {[%emt 0:10:42]} 11. Bf4 {[%emt 0:
00:00]} Qf5 {[%emt 0:32:09]} 12. Bg3 {[%emt 0:12:09]} b5 {[%emt 0:02:49]} 13.
Rfd1 {[%emt 0:03:15]} Qd7 {[%emt 0:06:03]} 14. Ne5 {[%emt 0:09:52]} Qa7 {
[%emt 0:01:07]} 15. a4 {[%emt 0:02:54]} bxa4 {[%emt 0:01:39]} 16. Rxa4 {
[%emt 0:03:38]} Be6 {[%emt 0:04:14]} 17. d5 {[%emt 0:06:47]} Bf5 {[%emt 0:00:
00]} 18. Nc6 {[%emt 0:13:07]} Nxc6 {[%emt 0:01:19]} 19. dxc6 {[%emt 0:00:05]}
Be6 {[%emt 0:02:21]} 20. Qa3 {[%emt 0:00:59]} Qb6 {[%emt 0:03:13]} 21. Bf3 {
[%emt 0:05:03]} a5 {[%emt 0:03:14]} 22. c7 {[%emt 0:03:13]} Ra7 {[%emt 0:03:28]
} 23. Qxe7 {[%emt 0:07:38]} Qxb2 {[%emt 0:04:20]} 24. Be5 {[%emt 0:01:57]} Nd5
{[%emt 0:03:42]} 25. Rxd5 {[%emt 0:02:17]} Bxd5 {[%emt 0:01:46]} 26. Bxg7 {
[%emt 0:01:48]} Qc1+ {[%emt 0:01:55]} 27. Bd1 {[%emt 0:00:13]} Kxg7 {[%emt 0:
00:00]} 28. Qxf8+ {[%emt 0:00:13]} Kxf8 {[%emt 0:00:03]} 29. c8=Q+ {[%emt 0:00:
00]} Kg7 {[%emt 0:00:08]} 30. Qc5 {[%emt 0:00:58]} Rd7 {[%emt 0:00:33]} 31. Rd4
{[%emt 0:00:38]} Be6 {[%emt 0:00:52]} 32. Rxd7 {[%emt 0:00:35]} Bxd7 {[%emt 0:
00:00]} 33. Qd4+ {[%emt 0:00:25]} Kg8 {[%emt 0:00:23]} 34. Nd5 {[%emt 0:00:36]}
Be6 {[%emt 0:01:10]} 35. Ne7+ {[%emt 0:00:16]} Kf8 {[%emt 0:00:00]} 36. Qd8+ {
[%emt 0:00:04]} Kg7 {[%emt 0:00:00]} 37. Qd4+ {[%emt 0:01:02]} Kf8 {[%emt 0:00:
00]} 38. Nd5 {[%emt 0:01:01]} Kg8 {[%emt 0:00:44]} 39. h3 {[%emt 0:00:54]} a4 {
[%emt 0:00:31]} 40. Nf6+ {[%emt 0:01:01]} Kg7 {[%emt 0:01:11]} 41. Ne4+ {
[%emt 0:30:44]} Kf8 {[%emt 0:08:08]} 42. Qxa4 {[%emt 0:00:00]} f5 {[%emt 0:00:
00]} 43. Nd6 {[%emt 0:00:00]} Ke7 {[%emt 0:04:37]} 44. Nb5 {[%emt 0:00:00]} Qd2
{[%emt 0:02:14]} 45. Qd4 {[%emt 0:00:00]} Qc1 {[%emt 0:01:00]} 46. Kh2 {
[%emt 0:00:00]} Bd7 {[%emt 0:02:34]} 47. Qd6+ {[%emt 0:00:00]} Kd8 {[%emt 0:00:
00]} 48. Bf3 {[%emt 0:00:00]} g5 {[%emt 0:08:50]} 49. Qf6+ {[%emt 0:00:00]} Kc8
{[%emt 0:00:11]} 50. Qf8+ {[%emt 0:00:00]} 1-0

[Event "44th Chess Olympiad Women 2022"]
[Site "Chennai"]
[Date "2022.08.01"]
[Round "4.33"]
[White "Puuska, Heini"]
[Black "Ning, Isabelle Yixuan"]
[Result "1-0"]
[WhiteElo "2010"]
[BlackElo "1853"]
[Annotator "NA RC"]
[PlyCount "105"]
[EventDate "2022.??.??"]
[TimeControl "60"]

1. d4 {[%emt 0:00:06]} Nf6 {[%emt 0:00:07]} 2. Nf3 {[%emt 0:00:21]} g6 {
[%emt 0:00:16]} 3. g3 {[%emt 0:00:21]} Bg7 {[%emt 0:00:23]} 4. Bg2 {[%emt 0:00:
00]} O-O {[%emt 0:00:25]} 5. O-O {[%emt 0:00:12]} d6 {[%emt 0:00:43]} 6. b3 {
[%emt 0:00:24]} c6 {[%emt 0:05:14]} 7. Bb2 {[%emt 0:01:00]} Na6 {[%emt 0:03:40]
} 8. c4 {[%emt 0:01:52]} Nc7 {[%emt 0:03:30]} 9. Nc3 {[%emt 0:01:46]} d5 {
[%emt 0:02:47]} 10. Re1 {[%emt 0:03:35]} b5 {[%emt 0:09:01]} 11. Ne5 {[%emt 0:
00:00]} Bb7 {[%emt 0:05:00]} 12. a4 {[%emt 0:14:16]} bxc4 {[%emt 0:04:58]} 13.
bxc4 {[%emt 0:00:39]} Nd7 {[%emt 0:02:09]} 14. cxd5 {[%emt 0:16:09]} Nxe5 {
[%emt 0:01:41]} 15. dxe5 {[%emt 0:00:16]} cxd5 {[%emt 0:01:37]} 16. f4 {
[%emt 0:02:06]} Rb8 {[%emt 0:04:18]} 17. Qd2 {[%emt 0:03:05]} Qd7 {[%emt 0:00:
00]} 18. Red1 {[%emt 0:06:31]} Rfd8 {[%emt 0:03:26]} 19. Ba3 {[%emt 0:01:54]}
f6 {[%emt 0:06:19]} 20. exf6 {[%emt 0:01:41]} Bxf6 {[%emt 0:00:19]} 21. e4 {
[%emt 0:04:38]} e5 {[%emt 0:10:16]} 22. fxe5 {[%emt 0:07:43]} Bxe5 {[%emt 0:00:
00]} 23. Rac1 {[%emt 0:04:08]} d4 {[%emt 0:03:04]} 24. Qg5 {[%emt 0:08:47]} Qg7
{[%emt 0:02:07]} 25. Nb5 {[%emt 0:03:35]} Nxb5 {[%emt 0:01:52]} 26. axb5 {
[%emt 0:00:14]} Bf6 {[%emt 0:01:05]} 27. Qc5 {[%emt 0:00:40]} d3 {[%emt 0:00:
00]} 28. Qc4+ {[%emt 0:02:04]} Qf7 {[%emt 0:02:00]} 29. Qxf7+ {[%emt 0:00:33]}
Kxf7 {[%emt 0:00:09]} 30. Rc7+ {[%emt 0:00:07]} Kg8 {[%emt 0:00:46]} 31. e5 {
[%emt 0:04:20]} Bxg2 {[%emt 0:00:56]} 32. exf6 {[%emt 0:00:13]} Bd5 {[%emt 0:
00:00]} 33. Rxd3 {[%emt 0:01:04]} Bf7 {[%emt 0:00:43]} 34. Rxd8+ {[%emt 0:00:
00]} Rxd8 {[%emt 0:00:00]} 35. Rxa7 {[%emt 0:00:45]} Rd1+ {[%emt 0:00:56]} 36.
Kf2 {[%emt 0:00:26]} Bc4 {[%emt 0:00:28]} 37. Rg7+ {[%emt 0:02:56]} Kh8 {
[%emt 0:00:08]} 38. Rc7 {[%emt 0:00:46]} Rf1+ {[%emt 0:00:40]} 39. Ke3 {
[%emt 0:00:30]} Bg8 {[%emt 0:00:26]} 40. Be7 {[%emt 0:01:25]} h5 {[%emt 0:00:
00]} 41. b6 {[%emt 0:32:05]} Bd5 {[%emt 0:04:48]} 42. b7 {[%emt 0:00:00]} Bxb7
{[%emt 0:00:58]} 43. Rxb7 {[%emt 0:00:00]} Kg8 {[%emt 0:00:33]} 44. h4 {
[%emt 0:00:00]} Kf7 {[%emt 0:00:48]} 45. Ke4 {[%emt 0:00:00]} Rf5 {[%emt 0:00:
00]} 46. Bd8+ {[%emt 0:00:00]} Ke8 {[%emt 0:01:09]} 47. Be7 {[%emt 0:00:00]}
Kf7 {[%emt 0:00:16]} 48. Rb8 {[%emt 0:00:00]} Ke6 {[%emt 0:00:51]} 49. Rg8 {
[%emt 0:00:00]} Kf7 {[%emt 0:01:46]} 50. Rg7+ {[%emt 0:00:00]} Ke6 {[%emt 0:00:
00]} 51. Rxg6 {[%emt 0:00:00]} Re5+ {[%emt 0:00:39]} 52. Kf3 {[%emt 0:00:00]}
Kf7 {[%emt 0:00:39]} 53. Rg5 {[%emt 0:00:00]} 1-0

[Event "44th Chess Olympiad Women 2022"]
[Site "Chennai"]
[Date "2022.08.01"]
[Round "4.33"]
[White "Yu, Weiyang"]
[Black "Norlamo, Sarabella"]
[Result "0-1"]
[WhiteElo "1504"]
[BlackElo "1925"]
[Annotator "NA RC"]
[PlyCount "118"]
[EventDate "2022.??.??"]
[TimeControl "60"]

1. e4 {[%emt 0:00:03]} e5 {[%emt 0:00:06]} 2. Nf3 {[%emt 0:00:06]} Nc6 {
[%emt 0:00:05]} 3. Bb5 {[%emt 0:00:03]} a6 {[%emt 0:00:06]} 4. Ba4 {[%emt 0:00:
00]} Nf6 {[%emt 0:00:06]} 5. O-O {[%emt 0:00:04]} b5 {[%emt 0:00:06]} 6. Bb3 {
[%emt 0:00:06]} Be7 {[%emt 0:00:09]} 7. d4 {[%emt 0:00:04]} d6 {[%emt 0:39:19]}
8. c3 {[%emt 0:03:47]} exd4 {[%emt 0:05:20]} 9. cxd4 {[%emt 0:00:53]} Bg4 {
[%emt 0:07:05]} 10. Be3 {[%emt 0:02:52]} Na5 {[%emt 0:04:23]} 11. Bc2 {[%emt 0:
00:00]} Nc4 {[%emt 0:00:05]} 12. b3 {[%emt 0:03:44]} Nxe3 {[%emt 0:00:46]} 13.
fxe3 {[%emt 0:00:06]} Bh5 {[%emt 0:05:10]} 14. Qe1 {[%emt 0:10:15]} Bg6 {
[%emt 0:00:33]} 15. Nbd2 {[%emt 0:05:58]} d5 {[%emt 0:15:22]} 16. Ne5 {[%emt 0:
00:00]} Bb4 {[%emt 0:01:10]} 17. Nxg6 {[%emt 0:06:02]} hxg6 {[%emt 0:00:06]}
18. Qf2 {[%emt 0:10:36]} Bxd2 {[%emt 0:03:02]} 19. e5 {[%emt 0:08:27]} Bxe3 {
[%emt 0:04:56]} 20. Qxe3 {[%emt 0:00:47]} Ng4 {[%emt 0:00:29]} 21. Qf4 {
[%emt 0:02:26]} Nh6 {[%emt 0:00:02]} 22. e6 {[%emt 0:05:49]} O-O {[%emt 0:00:
00]} 23. Qe5 {[%emt 0:09:52]} f6 {[%emt 0:05:16]} 24. Qg3 {[%emt 0:02:03]} g5 {
[%emt 0:00:38]} 25. Qd3 {[%emt 0:00:52]} f5 {[%emt 0:00:08]} 26. Rae1 {[%emt 0:
00:00]} Qe7 {[%emt 0:00:38]} 27. Qh3 {[%emt 0:00:23]} f4 {[%emt 0:03:03]} 28.
Qd3 {[%emt 0:00:59]} Nf5 {[%emt 0:00:17]} 29. Re5 {[%emt 0:01:01]} g6 {[%emt 0:
00:00]} 30. Rxd5 {[%emt 0:04:09]} Qxe6 {[%emt 0:00:08]} 31. Re5 {[%emt 0:00:37]
} Qd6 {[%emt 0:00:27]} 32. b4 {[%emt 0:01:19]} Qxd4+ {[%emt 0:01:06]} 33. Qxd4
{[%emt 0:00:15]} Nxd4 {[%emt 0:00:02]} 34. Bxg6 {[%emt 0:00:25]} Kg7 {[%emt 0:
00:00]} 35. Be4 {[%emt 0:00:38]} Kf6 {[%emt 0:01:23]} 36. Rc5 {[%emt 0:00:27]}
Ra7 {[%emt 0:00:29]} 37. Rd1 {[%emt 0:00:31]} Rd8 {[%emt 0:00:40]} 38. Bd5 {
[%emt 0:01:25]} Ne6 {[%emt 0:00:49]} 39. Rc6 {[%emt 0:00:24]} Rd6 {[%emt 0:00:
00]} 40. Re1 {[%emt 0:00:47]} Rxc6 {[%emt 0:01:26]} 41. Bxc6 {[%emt 0:30:17]}
Nd4 {[%emt 0:04:09]} 42. Be4 {[%emt 0:00:00]} c6 {[%emt 0:05:12]} 43. Bf3 {
[%emt 0:00:00]} Nc2 {[%emt 0:06:40]} 44. Re4 {[%emt 0:00:00]} Re7 {[%emt 0:00:
00]} 45. Rxe7 {[%emt 0:00:00]} Kxe7 {[%emt 0:00:02]} 46. Bxc6 {[%emt 0:00:00]}
Nxb4 {[%emt 0:00:05]} 47. Bb7 {[%emt 0:00:00]} a5 {[%emt 0:01:56]} 48. a3 {
[%emt 0:00:00]} Nc2 {[%emt 0:00:08]} 49. g3 {[%emt 0:00:00]} fxg3 {[%emt 0:00:
00]} 50. hxg3 {[%emt 0:00:00]} Nxa3 {[%emt 0:00:12]} 51. Bd5 {[%emt 0:00:00]}
Kd6 {[%emt 0:01:58]} 52. Bg8 {[%emt 0:00:00]} a4 {[%emt 0:00:24]} 53. Kf2 {
[%emt 0:00:00]} b4 {[%emt 0:01:25]} 54. Ke2 {[%emt 0:00:00]} b3 {[%emt 0:00:54]
} 55. Kd2 {[%emt 0:00:00]} b2 {[%emt 0:00:39]} 56. Bh7 {[%emt 0:00:00]} b1=Q {
[%emt 0:00:15]} 57. Bxb1 {[%emt 0:00:00]} Nxb1+ {[%emt 0:00:06]} 58. Kc2 {
[%emt 0:00:00]} Na3+ {[%emt 0:00:37]} 59. Kb2 {[%emt 0:00:00]} Nb5 {[%emt 0:00:
00]} 0-1